fUSD/lending_fUSD_20260611
["ID","MTS","AMOUNT","RATE_DAILY","PERIOD"]
[424747764,1781121061000,-275.25430615,0.0003,5]
[424747768,1781121061000,-12500.0,0.0003,2]
[424747767,1781121061000,-650.0,0.0003,2]
[424747769,1781121061000,-22500.0,0.0003,2]
[424747761,1781121061000,-151.0,0.0003,2]
[424747772,1781121061000,-350.0,0.00030035,15]
[424747760,1781121061000,-151.0,0.0003,2]
[424747770,1781121061000,-200.0,0.0003,2]
[424747762,1781121061000,-1994.5246291,0.0003,2]
[424747837,1781121062000,-700.0,0.00030137,2]
[424747841,1781121062000,-616.0,0.00030137,2]
[424747839,1781121062000,-750.0,0.00030137,2]
[424747838,1781121062000,-619.0,0.00030137,2]
[424747840,1781121062000,-750.0,0.00030137,2]
[424747830,1781121062000,-494.41904141,0.00030137,2]
[424747834,1781121062000,-198.75,0.00030137,13]
[424747833,1781121062000,-198.76,0.00030137,13]
[424747843,1781121062000,-750.0,0.00030137,2]
[424747842,1781121062000,-750.0,0.00030137,2]
[424747835,1781121062000,-1125.82,0.00030137,30]
[424747836,1781121062000,-700.0,0.00030137,2]
[424747860,1781121062000,-604.98822447,0.00030196,2]
[424747846,1781121062000,-150.0,0.00030137,2]
[424747844,1781121062000,-623.0,0.00030137,2]
[424747850,1781121062000,-186.53480136,0.00030185,2]
[424747848,1781121062000,-374.01065109,0.00030155,2]
[424747845,1781121062000,-162.15,0.00030137,30]
[424747852,1781121062000,-342.75265221,0.00030185,2]
[424747847,1781121062000,-155.61511032,0.00030146,2]
[424747851,1781121062000,-336.00003775,0.00030185,2]
[424747854,1781121062000,-478.52829234,0.00030185,2]
[424747855,1781121062000,-328.21741537,0.00030185,2]
[424747853,1781121062000,-573.50137102,0.00030185,2]
[424747831,1781121062000,-157.69923417,0.00030137,2]
[424747849,1781121062000,-315.40867109,0.00030176,7]
[424747829,1781121062000,-247.2095207,0.00030137,2]
[424747813,1781121062000,-518.99769508,0.0003013,2]
[424747832,1781121062000,-315.39846833,0.00030137,2]
[424747861,1781121062000,-718.13706933,0.00030196,2]
[424747802,1781121062000,-263.8276857,0.0003013,2]
[424747803,1781121062000,-671.61598001,0.0003013,2]
[424747806,1781121062000,-308.61377285,0.0003013,2]
[424747805,1781121062000,-424.27116041,0.0003013,2]
[424747807,1781121062000,-325.57646544,0.0003013,2]
[424747808,1781121062000,-365.1177954,0.0003013,2]
[424747817,1781121062000,-150.55645213,0.0003013,2]
[424747820,1781121062000,-200.3873064,0.0003013,2]
[424747810,1781121062000,-840.06070994,0.0003013,2]
[424747816,1781121062000,-809.80119908,0.0003013,2]
[424747818,1781121062000,-482.87408367,0.0003013,2]
[424747812,1781121062000,-970.01882987,0.0003013,2]
[424747814,1781121062000,-264.93580823,0.0003013,2]
[424747809,1781121062000,-411.13355158,0.0003013,2]
[424747811,1781121062000,-432.75550045,0.0003013,2]
[424747819,1781121062000,-413.35119911,0.0003013,2]
[424747815,1781121062000,-323.89609535,0.0003013,2]
[424747823,1781121062000,-679.72211348,0.0003013,2]
[424747821,1781121062000,-639.13179636,0.0003013,2]
[424747828,1781121062000,-575.61,0.00030137,5]
[424747825,1781121062000,-24975.84263284,0.0003013,7]
[424747826,1781121062000,-648.15486771,0.00030131,2]
[424747824,1781121062000,-235.8,0.0003013,120]
[424747827,1781121062000,-153.80113636,0.00030135,2]
[424747822,1781121062000,-183.69698338,0.0003013,2]
[424747862,1781121062000,-179.16425395,0.00030196,2]
[424747804,1781121062000,-491.39287179,0.0003013,2]
[424747858,1781121062000,-721.62434674,0.00030196,2]
[424747901,1781121062000,-506.09977629,0.00030221,2]
[424747895,1781121062000,-217.0,0.00030201,30]
[424747891,1781121062000,-274.0,0.00030201,30]
[424747890,1781121062000,-319.0,0.00030201,30]
[424747892,1781121062000,-990.0,0.00030201,30]
[424747893,1781121062000,-1333.0,0.00030201,30]
[424747896,1781121062000,-869.0,0.00030201,30]
[424747894,1781121062000,-309.0,0.00030201,30]
[424747897,1781121062000,-321.0,0.00030201,30]
[424747899,1781121062000,-481.58500183,0.00030219,2]
[424747904,1781121062000,-1025.0,0.0003023,30]
[424747906,1781121062000,-515.0,0.0003023,30]
[424747902,1781121062000,-339.17733709,0.00030221,2]
[424747905,1781121062000,-293.0,0.0003023,30]
[424747903,1781121062000,-266.0,0.0003023,30]
[424747908,1781121062000,-416.8,0.00030239,2]
[424747911,1781121062000,-429.72947018,0.00030442,2]
[424747907,1781121062000,-288.0,0.0003023,30]
[424747913,1781121062000,-3305.34,0.00030461,25]
[424747909,1781121062000,-225.8,0.00030248,7]
[424747910,1781121062000,-150.0,0.00030411,30]
[424747914,1781121062000,-150.0,0.00030685,30]
[424747915,1781121062000,-887.62802021,0.00030705,2]
[424747912,1781121062000,-151.0,0.00030442,2]
[424747856,1781121062000,-276.9077719,0.00030185,2]
[424747900,1781121062000,-333.64164255,0.00030219,2]
[424747887,1781121062000,-476.09308045,0.00030196,2]
[424747898,1781121062000,-586.45652962,0.00030219,2]
[424747884,1781121062000,-228.08904723,0.00030196,2]
[424747859,1781121062000,-517.27249335,0.00030196,2]
[424747888,1781121062000,-482.5267518,0.00030196,2]
[424747863,1781121062000,-644.85899641,0.00030196,2]
[424747865,1781121062000,-467.94997419,0.00030196,2]
[424747866,1781121062000,-394.07897693,0.00030196,2]
[424747864,1781121062000,-182.82440843,0.00030196,2]
[424747867,1781121062000,-212.27806,0.00030196,2]
[424747869,1781121062000,-648.92484341,0.00030196,2]
[424747868,1781121062000,-642.19178341,0.00030196,2]
[424747870,1781121062000,-551.32172015,0.00030196,2]
[424747871,1781121062000,-604.31859846,0.00030196,2]
[424747874,1781121062000,-435.86844357,0.00030196,2]
[424747877,1781121062000,-605.93958599,0.00030196,2]
[424747857,1781121062000,-603.05310929,0.00030185,2]
[424747873,1781121062000,-469.31390555,0.00030196,2]
[424747872,1781121062000,-411.17925677,0.00030196,2]
[424747886,1781121062000,-389.02461309,0.00030196,2]
[424747889,1781121062000,-309.0,0.00030201,30]
[424747883,1781121062000,-158.99859323,0.00030196,2]
[424747885,1781121062000,-201.92594505,0.00030196,2]
[424747880,1781121062000,-264.60155904,0.00030196,2]
[424747882,1781121062000,-619.57984361,0.00030196,2]
[424747879,1781121062000,-723.28746169,0.00030196,2]
[424747876,1781121062000,-224.46304643,0.00030196,2]
[424747875,1781121062000,-370.80025147,0.00030196,2]
[424747878,1781121062000,-461.34209463,0.00030196,2]
[424747881,1781121062000,-519.89096436,0.00030196,2]
[424747954,1781121063000,-321.0,0.00031201,30]
[424747953,1781121063000,-869.0,0.00031201,30]
[424747955,1781121063000,-1358.0,0.00031222,2]
[424747952,1781121063000,-217.0,0.00031201,30]
[424747948,1781121063000,-274.0,0.00031201,30]
[424747949,1781121063000,-990.0,0.00031201,30]
[424747947,1781121063000,-319.0,0.00031201,30]
[424747950,1781121063000,-1333.0,0.00031201,30]
[424747956,1781121063000,-382.0,0.00031222,2]
[424747943,1781121063000,-586.28,0.00031096,5]
[424747951,1781121063000,-309.0,0.00031201,30]
[424747958,1781121063000,-933.0,0.00031222,2]
[424747960,1781121063000,-266.0,0.0003123,30]
[424747962,1781121063000,-293.0,0.0003123,30]
[424747959,1781121063000,-3643.0,0.00031222,2]
[424747965,1781121063000,-82783.70059761,0.000313,3]
[424747961,1781121063000,-1025.0,0.0003123,30]
[424747966,1781121063000,-39150.25607868,0.000314,30]
[424747967,1781121063000,-3540.5182054,0.0003143,4]
[424747963,1781121063000,-515.0,0.0003123,30]
[424747964,1781121063000,-288.0,0.0003123,30]
[424747968,1781121063000,-153.80113636,0.00031504,2]
[424747972,1781121063000,-167.02,0.00031507,30]
[424747936,1781121063000,-255.0,0.00030797,2]
[424747957,1781121063000,-1274.0,0.00031222,2]
[424747944,1781121063000,-265.0,0.00031182,3]
[424747916,1781121063000,-881.55782136,0.00030705,2]
[424747946,1781121063000,-309.0,0.00031201,30]
[424747971,1781121063000,-180.0,0.00031507,30]
[424747917,1781121063000,-1371.85449378,0.00030705,2]
[424747919,1781121063000,-879.57181588,0.00030705,2]
[424747921,1781121063000,-1050.07588743,0.00030705,2]
[424747920,1781121063000,-839.51997502,0.00030705,2]
[424747918,1781121063000,-1359.31868977,0.00030705,2]
[424747922,1781121063000,-1212.52353734,0.00030705,2]
[424747923,1781121063000,-1012.25149886,0.00030705,2]
[424747925,1781121063000,-849.65264185,0.00030705,2]
[424747924,1781121063000,-798.91474545,0.00030705,2]
[424747928,1781121063000,-753.81638662,0.00030761,2]
[424747929,1781121063000,-756.23528059,0.00030772,2]
[424747940,1781121063000,-250.0,0.000309,120]
[424747935,1781121063000,-774.47480451,0.00030772,2]
[424747931,1781121063000,-806.07374551,0.00030772,2]
[424747927,1781121063000,-250.0,0.00030721,7]
[424747926,1781121063000,-810.19358464,0.00030706,2]
[424747932,1781121063000,-802.73972926,0.00030772,2]
[424747933,1781121063000,-755.39824807,0.00030772,2]
[424747934,1781121063000,-757.42448249,0.00030772,2]
[424747937,1781121063000,-150.0,0.00030841,2]
[424747939,1781121063000,-500.0,0.00030892,60]
[424747941,1781121063000,-350.0,0.00030969,18]
[424747942,1781121063000,-284.95203121,0.00031,7]
[424747945,1781121063000,-1000.0,0.000312,7]
[424747938,1781121063000,-200.0,0.00030889,2]
[424747930,1781121063000,-897.67133666,0.00030772,2]
[424747978,1781121063000,-1055.48617906,0.00031568,2]
[424747970,1781121063000,-300.0,0.00031507,30]
[424747974,1781121063000,-1065.15362425,0.00031568,2]
[424748015,1781121063000,-296.42884929,0.00032,120]
[424748005,1781121063000,-199.66604063,0.00032,120]
[424748009,1781121063000,-186.98342845,0.00032,120]
[424748007,1781121063000,-453.93294731,0.00032,120]
[424748006,1781121063000,-194.94433173,0.00032,120]
[424748004,1781121063000,-272.08697304,0.00032,120]
[424748008,1781121063000,-1596.73290324,0.00032,120]
[424748011,1781121063000,-513.70882542,0.00032,120]
[424748014,1781121063000,-1507.80893141,0.00032,120]
[424748013,1781121063000,-382.79210852,0.00032,120]
[424748012,1781121063000,-448.98618062,0.00032,120]
[424748010,1781121063000,-1767.85171708,0.00032,120]
[424748016,1781121063000,-181.16084517,0.00032,120]
[424748018,1781121063000,-262.54297868,0.00032,120]
[424748019,1781121063000,-151.0,0.00032,2]
[424748021,1781121063000,-700.0,0.00032,2]
[424748024,1781121063000,-309.0,0.00032201,30]
[424748017,1781121063000,-427.88414532,0.00032,120]
[424748022,1781121063000,-4351.35591528,0.00032021,6]
[424748026,1781121063000,-274.0,0.00032201,30]
[424747969,1781121063000,-300.0,0.00031507,30]
[424748023,1781121063000,-594.26,0.00032055,5]
[424748020,1781121063000,-430.0,0.00032,120]
[424748027,1781121063000,-990.0,0.00032201,30]
[424748028,1781121063000,-1333.0,0.00032201,30]
[424748002,1781121063000,-202.78649995,0.00032,120]
[424748000,1781121063000,-183.07677686,0.00032,120]
[424748025,1781121063000,-319.0,0.00032201,30]
[424748001,1781121063000,-651.10585067,0.00032,120]
[424747995,1781121063000,-400.08,0.00031939,2]
[424747975,1781121063000,-1057.86938563,0.00031568,2]
[424747977,1781121063000,-1631.18242773,0.00031568,2]
[424747973,1781121063000,-150.0,0.00031507,2]
[424747980,1781121063000,-1260.09106491,0.00031568,2]
[424747990,1781121063000,-1170.68,0.0003177,30]
[424747991,1781121063000,-350.0,0.00031823,21]
[424747979,1781121063000,-1007.42397002,0.00031568,2]
[424747987,1781121063000,-967.28849461,0.00031636,2]
[424747983,1781121063000,-1019.58317022,0.00031568,2]
[424747981,1781121063000,-1455.0282448,0.00031568,2]
[424747989,1781121063000,-200.0,0.00031659,2]
[424747976,1781121063000,-1646.22539254,0.00031568,2]
[424747985,1781121063000,-150.316001,0.000316,2]
[424747984,1781121063000,-1123.13294457,0.00031568,2]
[424748003,1781121063000,-170.5351089,0.00032,120]
[424747997,1781121063000,-255.25011818,0.00032,120]
[424747999,1781121063000,-234.36875917,0.00032,120]
[424747993,1781121063000,-485.5,0.000319,120]
[424747996,1781121063000,-170.1,0.00031963,2]
[424747992,1781121063000,-500.0,0.00031863,2]
[424747982,1781121063000,-958.69769454,0.00031568,2]
[424747986,1781121063000,-1077.205604,0.00031636,2]
[424747988,1781121063000,-906.47789768,0.00031636,2]
[424747994,1781121063000,-284.95203121,0.000319,7]
[424747998,1781121063000,-200.04897529,0.00032,120]
[424748054,1781121064000,-1242.67922829,0.00032862,2]
[424748061,1781121064000,-1697.53295227,0.00032862,2]
[424748053,1781121064000,-211.43435247,0.00032708,14]
[424748056,1781121064000,-1234.1809499,0.00032862,2]
[424748051,1781121064000,-416.45,0.00032641,2]
[424748057,1781121064000,-1903.04616568,0.00032862,2]
[424748060,1781121064000,-1470.1062424,0.00032862,2]
[424748074,1781121064000,-285.825768,0.00032877,7]
[424748059,1781121064000,-1175.32796502,0.00032862,2]
[424748066,1781121064000,-151.0,0.00032877,7]
[424748064,1781121064000,-153.80113636,0.00032873,2]
[424748063,1781121064000,-1189.51369859,0.00032862,2]
[424748065,1781121064000,-277.432391,0.00032877,2]
[424748071,1781121064000,-285.825768,0.00032877,7]
[424748069,1781121064000,-285.825768,0.00032877,7]
[424748067,1781121064000,-171.425166,0.00032877,7]
[424748070,1781121064000,-285.825768,0.00032877,7]
[424748068,1781121064000,-285.825768,0.00032877,7]
[424748058,1781121064000,-1231.40054223,0.00032862,2]
[424748062,1781121064000,-1118.48064363,0.00032862,2]
[424748055,1781121064000,-1920.59629129,0.00032862,2]
[424748037,1781121064000,-515.0,0.0003223,30]
[424748047,1781121064000,-279.69709038,0.0003247,7]
[424748038,1781121064000,-288.0,0.0003223,30]
[424748029,1781121064000,-309.0,0.00032201,30]
[424748031,1781121064000,-869.0,0.00032201,30]
[424748030,1781121064000,-217.0,0.00032201,30]
[424748034,1781121064000,-266.0,0.0003223,30]
[424748036,1781121064000,-293.0,0.0003223,30]
[424748032,1781121064000,-321.0,0.00032201,30]
[424748033,1781121064000,-416.8,0.0003221,5]
[424748035,1781121064000,-1025.0,0.0003223,30]
[424748052,1781121064000,-152.0,0.00032687,4]
[424748039,1781121064000,-50000.0,0.00032232,120]
[424748045,1781121064000,-1138.29,0.00032403,7]
[424748050,1781121064000,-151.0,0.00032588,2]
[424748043,1781121064000,-150.0,0.00032383,2]
[424748042,1781121064000,-50000.0,0.00032232,30]
[424748041,1781121064000,-50000.0,0.00032232,60]
[424748040,1781121064000,-50000.0,0.00032232,90]
[424748044,1781121064000,-6344.41,0.00032398,2]
[424748049,1781121064000,-285.61869543,0.00032582,6]
[424748046,1781121064000,-200.0,0.00032429,2]
[424748048,1781121064000,-318.65221479,0.00032536,60]
[424748075,1781121064000,-285.825768,0.00032877,7]
[424748093,1781121064000,-296.281006,0.00032877,7]
[424748073,1781121064000,-285.825768,0.00032877,7]
[424748097,1781121064000,-1048.909993,0.00032877,7]
[424748102,1781121064000,-1048.909993,0.00032877,7]
[424748098,1781121064000,-296.281006,0.00032877,7]
[424748095,1781121064000,-296.281006,0.00032877,7]
[424748100,1781121064000,-296.281006,0.00032877,7]
[424748103,1781121064000,-1048.909993,0.00032877,7]
[424748107,1781121064000,-1048.909993,0.00032877,7]
[424748108,1781121064000,-305.646981,0.00032877,7]
[424748116,1781121064000,-1048.909993,0.00032877,7]
[424748101,1781121064000,-1048.909993,0.00032877,7]
[424748109,1781121064000,-1048.909993,0.00032877,7]
[424748113,1781121064000,-1048.909993,0.00032877,7]
[424748118,1781121064000,-305.646981,0.00032877,7]
[424748111,1781121064000,-1048.909993,0.00032877,7]
[424748112,1781121064000,-305.646981,0.00032877,7]
[424748117,1781121064000,-296.281006,0.00032877,7]
[424748114,1781121064000,-296.281006,0.00032877,7]
[424748115,1781121064000,-305.646981,0.00032877,7]
[424748119,1781121064000,-1048.909993,0.00032877,7]
[424748072,1781121064000,-285.825768,0.00032877,7]
[424748110,1781121064000,-305.646981,0.00032877,7]
[424748099,1781121064000,-1048.909993,0.00032877,7]
[424748120,1781121064000,-305.646981,0.00032877,7]
[424748106,1781121064000,-1048.909993,0.00032877,7]
[424748104,1781121064000,-296.281006,0.00032877,7]
[424748077,1781121064000,-285.825768,0.00032877,7]
[424748078,1781121064000,-285.825768,0.00032877,7]
[424748081,1781121064000,-151.0,0.00032877,7]
[424748079,1781121064000,-285.825768,0.00032877,7]
[424748080,1781121064000,-151.0,0.00032877,7]
[424748084,1781121064000,-151.0,0.00032877,7]
[424748083,1781121064000,-151.0,0.00032877,7]
[424748082,1781121064000,-151.0,0.00032877,7]
[424748087,1781121064000,-151.471584,0.00032877,7]
[424748076,1781121064000,-285.825768,0.00032877,7]
[424748086,1781121064000,-151.0,0.00032877,7]
[424748089,1781121064000,-151.0,0.00032877,7]
[424748092,1781121064000,-179.328264,0.00032877,7]
[424748090,1781121064000,-151.0,0.00032877,7]
[424748091,1781121064000,-151.0,0.00032877,7]
[424748094,1781121064000,-296.281006,0.00032877,7]
[424748085,1781121064000,-151.0,0.00032877,7]
[424748096,1781121064000,-296.281006,0.00032877,7]
[424748105,1781121064000,-1048.909993,0.00032877,7]
[424748088,1781121064000,-151.0,0.00032877,7]
[424748151,1781121065000,-822.590638,0.00032877,7]
[424748152,1781121065000,-822.590638,0.00032877,7]
[424748149,1781121065000,-305.646989,0.00032877,7]
[424748146,1781121065000,-822.590638,0.00032877,7]
[424748147,1781121065000,-305.646981,0.00032877,7]
[424748144,1781121065000,-305.646981,0.00032877,7]
[424748141,1781121065000,-822.590638,0.00032877,7]
[424748150,1781121065000,-822.590638,0.00032877,7]
[424748153,1781121065000,-822.590638,0.00032877,7]
[424748154,1781121065000,-822.590638,0.00032877,7]
[424748155,1781121065000,-822.590638,0.00032877,7]
[424748156,1781121065000,-822.590638,0.00032877,7]
[424748157,1781121065000,-822.590638,0.00032877,7]
[424748163,1781121065000,-822.590638,0.00032877,7]
[424748160,1781121065000,-822.590638,0.00032877,7]
[424748159,1781121065000,-822.590638,0.00032877,7]
[424748162,1781121065000,-822.590638,0.00032877,7]
[424748145,1781121065000,-305.646981,0.00032877,7]
[424748161,1781121065000,-822.590638,0.00032877,7]
[424748148,1781121065000,-822.590638,0.00032877,7]
[424748143,1781121065000,-822.590638,0.00032877,7]
[424748128,1781121065000,-305.646981,0.00032877,7]
[424748140,1781121065000,-305.646981,0.00032877,7]
[424748165,1781121065000,-151.0,0.00032877,7]
[424748121,1781121065000,-1048.909993,0.00032877,7]
[424748122,1781121065000,-305.646981,0.00032877,7]
[424748123,1781121065000,-1048.909993,0.00032877,7]
[424748126,1781121065000,-305.646981,0.00032877,7]
[424748124,1781121065000,-296.281006,0.00032877,7]
[424748125,1781121065000,-1048.909993,0.00032877,7]
[424748129,1781121065000,-296.281006,0.00032877,7]
[424748127,1781121065000,-1048.909993,0.00032877,7]
[424748130,1781121065000,-1048.909993,0.00032877,7]
[424748132,1781121065000,-296.281006,0.00032877,7]
[424748135,1781121065000,-1048.909994,0.00032877,7]
[424748134,1781121065000,-1048.909993,0.00032877,7]
[424748131,1781121065000,-305.646981,0.00032877,7]
[424748133,1781121065000,-305.646981,0.00032877,7]
[424748136,1781121065000,-305.646981,0.00032877,7]
[424748139,1781121065000,-822.590638,0.00032877,7]
[424748137,1781121065000,-305.646981,0.00032877,7]
[424748138,1781121065000,-305.646981,0.00032877,7]
[424748142,1781121065000,-305.646981,0.00032877,7]
[424748166,1781121065000,-151.0,0.00032877,7]
[424748158,1781121065000,-822.590638,0.00032877,7]
[424748167,1781121065000,-151.0,0.00032877,7]
[424748193,1781121065000,-314.850926,0.00032877,7]
[424748192,1781121065000,-314.85092,0.00032877,7]
[424748199,1781121065000,-158.853372,0.00032877,7]
[424748195,1781121065000,-158.853372,0.00032877,7]
[424748196,1781121065000,-364.862915,0.00032877,7]
[424748194,1781121065000,-364.862915,0.00032877,7]
[424748190,1781121065000,-314.85092,0.00032877,7]
[424748198,1781121065000,-364.862915,0.00032877,7]
[424748197,1781121065000,-158.853372,0.00032877,7]
[424748191,1781121065000,-314.85092,0.00032877,7]
[424748201,1781121065000,-158.853372,0.00032877,7]
[424748202,1781121065000,-297.374598,0.00032877,7]
[424748200,1781121065000,-364.862915,0.00032877,7]
[424748210,1781121065000,-364.862915,0.00032877,7]
[424748204,1781121065000,-158.853372,0.00032877,7]
[424748206,1781121065000,-297.374598,0.00032877,7]
[424748207,1781121065000,-364.862915,0.00032877,7]
[424748205,1781121065000,-6842.705704,0.00032877,7]
[424748164,1781121065000,-822.590642,0.00032877,7]
[424748208,1781121065000,-158.853372,0.00032877,7]
[424748209,1781121065000,-297.374598,0.00032877,7]
[424748189,1781121065000,-314.85092,0.00032877,7]
[424748203,1781121065000,-364.862915,0.00032877,7]
[424748187,1781121065000,-314.85092,0.00032877,7]
[424748171,1781121065000,-151.0,0.00032877,7]
[424748186,1781121065000,-314.85092,0.00032877,7]
[424748173,1781121065000,-151.0,0.00032877,7]
[424748177,1781121065000,-314.85092,0.00032877,7]
[424748176,1781121065000,-314.85092,0.00032877,7]
[424748170,1781121065000,-314.85092,0.00032877,7]
[424748172,1781121065000,-314.85092,0.00032877,7]
[424748169,1781121065000,-314.85092,0.00032877,7]
[424748174,1781121065000,-314.85092,0.00032877,7]
[424748175,1781121065000,-151.0,0.00032877,7]
[424748178,1781121065000,-314.85092,0.00032877,7]
[424748188,1781121065000,-314.85092,0.00032877,7]
[424748179,1781121065000,-151.0,0.00032877,7]
[424748182,1781121065000,-314.85092,0.00032877,7]
[424748184,1781121065000,-314.85092,0.00032877,7]
[424748181,1781121065000,-151.0,0.00032877,7]
[424748180,1781121065000,-314.85092,0.00032877,7]
[424748168,1781121065000,-314.85092,0.00032877,7]
[424748183,1781121065000,-170.716073,0.00032877,7]
[424748185,1781121065000,-314.85092,0.00032877,7]
[424748242,1781121066000,-158.853372,0.00032877,7]
[424748256,1781121066000,-297.374598,0.00032877,7]
[424748248,1781121066000,-297.374598,0.00032877,7]
[424748247,1781121066000,-6842.705704,0.00032877,7]
[424748240,1781121066000,-6842.705704,0.00032877,7]
[424748245,1781121066000,-297.374598,0.00032877,7]
[424748244,1781121066000,-6842.705704,0.00032877,7]
[424748236,1781121066000,-6842.705704,0.00032877,7]
[424748241,1781121066000,-297.374598,0.00032877,7]
[424748243,1781121066000,-364.862915,0.00032877,7]
[424748255,1781121066000,-6842.705704,0.00032877,7]
[424748257,1781121066000,-364.862915,0.00032877,7]
[424748246,1781121066000,-158.853372,0.00032877,7]
[424748251,1781121066000,-6842.705704,0.00032877,7]
[424748252,1781121066000,-297.374598,0.00032877,7]
[424748250,1781121066000,-158.853372,0.00032877,7]
[424748254,1781121066000,-158.853372,0.00032877,7]
[424748253,1781121066000,-364.862915,0.00032877,7]
[424748259,1781121066000,-6842.705704,0.00032877,7]
[424748258,1781121066000,-158.853372,0.00032877,7]
[424748260,1781121066000,-364.862915,0.00032877,7]
[424748262,1781121066000,-158.853376,0.00032877,7]
[424748263,1781121066000,-6842.705704,0.00032877,7]
[424748239,1781121066000,-158.853372,0.00032877,7]
[424748249,1781121066000,-364.862915,0.00032877,7]
[424748238,1781121066000,-364.862915,0.00032877,7]
[424748215,1781121066000,-6842.705704,0.00032877,7]
[424748235,1781121066000,-158.853372,0.00032877,7]
[424748266,1781121066000,-6842.705704,0.00032877,7]
[424748211,1781121066000,-6842.705704,0.00032877,7]
[424748212,1781121066000,-158.853372,0.00032877,7]
[424748213,1781121066000,-297.374598,0.00032877,7]
[424748214,1781121066000,-364.862915,0.00032877,7]
[424748217,1781121066000,-297.374598,0.00032877,7]
[424748216,1781121066000,-158.853372,0.00032877,7]
[424748220,1781121066000,-6842.705704,0.00032877,7]
[424748218,1781121066000,-364.862915,0.00032877,7]
[424748221,1781121066000,-297.374598,0.00032877,7]
[424748222,1781121066000,-364.862915,0.00032877,7]
[424748237,1781121066000,-297.374598,0.00032877,7]
[424748219,1781121066000,-158.853372,0.00032877,7]
[424748234,1781121066000,-364.862915,0.00032877,7]
[424748223,1781121066000,-158.853372,0.00032877,7]
[424748225,1781121066000,-297.374598,0.00032877,7]
[424748227,1781121066000,-158.853372,0.00032877,7]
[424748226,1781121066000,-364.862915,0.00032877,7]
[424748230,1781121066000,-364.862915,0.00032877,7]
[424748228,1781121066000,-6842.705704,0.00032877,7]
[424748233,1781121066000,-297.374598,0.00032877,7]
[424748231,1781121066000,-158.853372,0.00032877,7]
[424748232,1781121066000,-6842.705704,0.00032877,7]
[424748229,1781121066000,-297.374598,0.00032877,7]
[424748224,1781121066000,-6842.705704,0.00032877,7]
[424748261,1781121066000,-297.374598,0.00032877,7]
[424748300,1781121066000,-295.484529,0.00032877,7]
[424748264,1781121066000,-364.862923,0.00032877,7]
[424748297,1781121066000,-174.811018,0.00032877,7]
[424748298,1781121066000,-295.484529,0.00032877,7]
[424748295,1781121066000,-174.811018,0.00032877,7]
[424748299,1781121066000,-174.811018,0.00032877,7]
[424748301,1781121066000,-151.0,0.00032877,7]
[424748305,1781121066000,-174.811018,0.00032877,7]
[424748304,1781121066000,-151.0,0.00032877,7]
[424748303,1781121066000,-295.484529,0.00032877,7]
[424748302,1781121066000,-174.811018,0.00032877,7]
[424748306,1781121066000,-295.484529,0.00032877,7]
[424748310,1781121066000,-174.811018,0.00032877,7]
[424748296,1781121066000,-295.484529,0.00032877,7]
[424748308,1781121066000,-295.484529,0.00032877,7]
[424748312,1781121066000,-151.0,0.00032877,7]
[424748317,1781121066000,-8476.636773,0.00032877,7]
[424748311,1781121066000,-295.484529,0.00032877,7]
[424748319,1781121066000,-295.484536,0.00032877,7]
[424748320,1781121066000,-151.0,0.00032877,7]
[424748318,1781121066000,-174.811018,0.00032877,7]
[424748314,1781121066000,-174.811018,0.00032877,7]
[424748315,1781121066000,-295.484529,0.00032877,7]
[424748313,1781121066000,-8476.636773,0.00032877,7]
[424748316,1781121066000,-151.0,0.00032877,7]
[424748265,1781121066000,-297.374598,0.00032877,7]
[424748307,1781121066000,-174.811018,0.00032877,7]
[424748293,1781121066000,-174.811018,0.00032877,7]